bitfinex-derivatives/quotes_ETHF0:USTF0_20250708
["timestamp","ask_amount","ask_price","bid_price","bid_amount"]
[1751966675460,32.7867718,2549.1,2549.0,0.78457]
[1751966685067,32.7867718,2549.1,2549.0,0.95719468]
[1751966685269,29.0098018,2549.1,2549.0,1.65019468]
[1751966686066,1.6844018,2549.1,2549.0,1.65019468]
[1751966686267,29.0028018,2549.1,2549.0,1.65019468]
[1751966686466,29.0028018,2549.1,2549.0,3.82224615]
[1751966687462,28.3074018,2549.1,2549.0,4.84984615]
[1751966687864,29.0028018,2549.1,2549.0,4.84984615]
[1751966690169,29.0028018,2549.1,2549.0,3.82224615]
[1751966690872,29.7873718,2549.1,2549.0,3.82224615]
[1751966691170,30.7956718,2549.1,2549.0,1.65019468]
[1751966693172,30.7956718,2549.1,2549.0,0.95719468]
[1751966693866,30.7956718,2549.1,2548.4,3.92382]
[1751966693867,40.1803718,2549.1,2548.4,3.2078]
[1751966694065,0.78472,2548.6,2548.5,1.46954]
[1751966694264,30.8480218,2548.6,2548.5,1.46954]
[1751966694471,29.16362,2548.6,2548.5,1.46954]
[1751966694876,30.84878316,2548.6,2548.5,1.46954]
[1751966696085,0.78475,2548.5,2548.4,0.78475]
[1751966696276,3.15351316,2548.5,2548.4,0.78475]
[1751966696476,4.20581316,2548.5,2548.4,0.78475]
[1751966697578,4.20581316,2548.5,2548.4,1.44405]
[1751966697781,4.20581316,2548.5,2548.4,0.78475]
[1751966698283,2.52065,2548.5,2548.4,0.78475]
[1751966698982,2.52065,2548.5,2548.4,1.44405]
[1751966703484,2.52065,2548.5,2548.4,1.44408]
[1751966703986,4.20811975,2548.5,2548.4,1.44408]
[1751966705088,2.37106975,2548.5,2548.4,3.61613147]
[1751966705281,3.15581975,2548.5,2548.4,3.61613147]
[1751966707484,1.46835,2548.5,2548.4,3.61613147]
[1751966707687,3.15572697,2548.5,2548.4,3.61613147]
[1751966710190,4.20802697,2548.5,2548.4,3.61613147]
[1751966710793,3.15572697,2548.5,2548.4,3.61613147]
[1751966711482,26.632,2548.5,2548.4,2.44458]
[1751966711883,27.3156,2548.5,2548.4,1.44408]
[1751966713587,27.3156,2548.5,2548.4,2.44458]
[1751966714594,28.10035,2548.5,2548.4,2.44458]
[1751966714792,28.10035,2548.5,2548.4,1.44408]
[1751966715690,27.3156,2548.5,2548.4,1.44408]
[1751966716496,27.3156,2548.5,2548.4,2.44458]
[1751966718200,28.10035,2548.5,2548.4,2.44458]
[1751966718605,28.10035,2548.5,2548.4,1.44408]
[1751966719402,27.3156,2548.5,2548.4,1.44408]
[1751966720501,29.00477859,2548.5,2548.4,1.44408]
[1751966721201,29.00460033,2548.5,2548.4,1.44408]
[1751966722703,29.78935033,2548.5,2548.4,1.44408]
[1751966723894,29.00460033,2548.5,2548.4,1.44408]
[1751966724501,29.78935033,2548.5,2548.4,1.44408]
[1751966724700,29.00460033,2548.5,2548.4,1.44408]
[1751966725104,29.78935033,2548.5,2548.4,1.44408]
[1751966725600,30.77535033,2548.5,2548.4,1.44408]
[1751966727004,0.78478,2548.4,2548.3,1.4271]
[1751966727305,3.11748033,2548.4,2548.3,1.4271]
[1751966727601,3.11748033,2548.4,2548.3,2.1116]
[1751966727797,2.33270033,2548.4,2548.3,4.28365147]
[1751966728099,1.68900033,2548.4,2548.3,6.3319]
[1751966728300,26.628,2548.6,2548.5,0.78475]
[1751966728498,28.31848888,2548.6,2548.5,1.46925]
[1751966728697,28.96218888,2548.6,2548.5,1.46925]
[1751966729206,29.74690888,2548.6,2548.5,2.48175]
[1751966729504,28.96218888,2548.6,2548.5,2.48175]
[1751966730604,8.251,2549.0,2548.5,2.48175]
[1751966730605,13.61160818,2549.1,2549.0,0.7846]
[1751966730805,44.7956948,2549.1,2548.9,0.7846]
[1751966731004,2.67658662,2549.0,2548.9,0.7846]
[1751966731200,3.32028662,2549.0,2548.9,0.7846]
[1751966731808,4.73588662,2549.0,2548.9,0.7846]
[1751966732507,5.52048662,2549.0,2548.9,0.7846]
[1751966734411,5.52048662,2549.0,2548.9,1.4691]
[1751966734611,5.52048662,2549.0,2548.9,0.7846]
[1751966735406,5.52048662,2549.0,2548.9,1.4691]
[1751966735607,5.52048662,2549.0,2548.9,0.7846]
[1751966736205,5.52048662,2549.0,2548.9,1.4691]
[1751966739410,5.52048662,2549.0,2548.9,0.6845]
[1751966742213,5.52048662,2549.0,2548.9,1.46913]
[1751966743007,5.52048662,2549.0,2548.9,0.6845]
[1751966743213,5.52048662,2549.0,2548.9,1.46913]
[1751966745714,5.52048662,2549.0,2548.9,0.6845]
[1751966747315,5.52048662,2549.0,2548.9,1.46913]
[1751966747514,5.52048662,2549.0,2548.9,0.6845]
[1751966748517,5.52048662,2549.0,2548.9,1.46913]
[1751966748713,5.52048662,2549.0,2548.9,0.6845]
[1751966748912,5.52048662,2549.0,2548.9,2.41887028]
[1751966749918,5.52048662,2549.0,2548.9,3.20350028]
[1751966750518,5.52048662,2549.0,2548.9,2.41887028]
[1751966750718,5.52048662,2549.0,2548.9,3.20350028]
[1751966750919,5.52048662,2549.0,2548.9,2.41887028]
[1751966752016,5.52048662,2549.0,2548.9,3.06527028]
[1751966752322,5.52048662,2549.0,2548.9,3.84990028]
[1751966752522,5.52048662,2549.0,2548.9,3.06527028]
[1751966754021,5.52048662,2549.0,2548.9,3.84990028]
[1751966754522,5.52048662,2549.0,2548.9,3.06527028]
[1751966756021,5.52048662,2549.0,2548.9,3.84990028]
[1751966756222,4.10488662,2549.0,2548.9,3.84990028]
[1751966756524,4.10488662,2549.0,2548.9,3.06527028]
[1751966757723,4.10488662,2549.0,2548.9,1.3309]
[1751966758116,5.50668662,2549.0,2548.9,1.3309]
[1751966759222,7.8562948,2549.0,2548.9,1.3309]
[1751966763425,6.4544948,2549.0,2548.9,1.3309]
[1751966765627,5.4684948,2549.0,2548.9,2.11553]
[1751966765823,31.4497948,2549.0,2548.9,2.11553]
[1751966766018,32.1578948,2549.0,2548.9,2.11553]
[1751966766218,31.4497948,2549.0,2548.9,2.11553]
[1751966766630,32.1578948,2549.0,2548.9,2.11553]
[1751966766925,29.80828662,2549.0,2548.9,2.11553]
[1751966767127,29.80828662,2549.0,2548.9,3.13113]
[1751966768623,29.80828662,2549.0,2548.9,1.3309]
[1751966768824,32.1578948,2549.0,2548.9,1.3309]
[1751966769325,32.1578948,2549.0,2548.9,2.11553]
[1751966769525,32.1578948,2549.0,2548.9,3.06527028]
[1751966769726,30.46730818,2549.0,2548.9,3.06527028]
[1751966769926,32.16490382,2549.0,2548.9,3.06527028]
[1751966770229,6.53060382,2549.0,2548.9,1.3309]
[1751966770428,33.15460382,2549.0,2548.9,1.3309]
[1751966779830,33.15460382,2549.0,2548.9,3.06527028]
[1751966780326,32.16390382,2549.0,2548.9,3.06527028]
[1751966780730,32.16190382,2549.0,2548.9,3.06527028]
[1751966781027,32.16190382,2549.0,2548.9,3.84990028]
[1751966783732,5.53990382,2549.0,2548.9,3.84990028]
[1751966783931,32.16190382,2549.0,2548.9,4.85960028]
[1751966786026,31.45280382,2549.0,2548.9,3.12523]
[1751966788531,32.13930382,2549.0,2548.9,3.12523]
[1751966788734,32.13930382,2549.0,2548.9,2.11553]
[1751966789230,32.13930382,2549.0,2548.9,1.3309]
[1751966789431,29.78969564,2549.0,2548.9,1.3309]
[1751966789833,32.13930382,2549.0,2548.9,3.06527028]
[1751966790433,33.15430382,2549.0,2548.9,1.3309]
[1751966790633,34.50470382,2549.0,2548.9,1.3309]
[1751966791430,0.78466,2548.8,2548.7,0.78467]
[1751966791630,28.09216,2548.8,2548.7,1.44617]
[1751966791828,29.78975564,2548.8,2548.7,1.44617]
[1751966799335,30.80475564,2548.8,2548.7,0.78467]
[1751966799634,30.80475564,2548.8,2548.7,3.18054028]
[1751966802435,29.78975564,2548.8,2548.7,3.18054028]
[1751966804637,0.78472,2548.6,2548.5,3.99253]
[1751966804831,0.78478,2548.5,2548.4,2.51912028]
[1751966805038,3.16887564,2548.5,2548.4,3.18062028]
[1751966806238,3.16887564,2548.5,2548.4,2.51912028]
[1751966806733,3.16887564,2548.5,2548.4,3.18062028]
[1751966808138,3.16887564,2548.5,2548.4,1.44625]
[1751966808638,3.16887564,2548.5,2548.4,2.45595]
[1751966811446,2.38409564,2548.5,2548.4,2.45595]
[1751966811740,3.16884564,2548.5,2548.4,2.45595]
[1751966813341,2.38409564,2548.5,2548.4,2.45595]
[1751966816441,0.78465,2548.9,2548.5,0.78475]
[1751966816641,0.78465,2548.9,2548.8,1.48246]
[1751966816642,1.46325,2548.9,2548.8,1.48246]
[1751966816842,29.77715632,2548.9,2548.8,1.48246]
[1751966819640,2.37350632,2548.9,2548.8,1.48246]
[1751966819857,28.99250632,2548.9,2548.8,2.52976]
[1751966820146,28.31390632,2548.9,2548.8,2.52976]
[1751966821548,1.69490632,2548.9,2548.8,4.26413028]
[1751966821747,3.2078,2549.2,2549.1,0.78457]
[1751966821941,29.8268,2549.2,2549.1,1.48237]
[1751966822147,29.8268,2549.2,2549.1,2.52967]
[1751966822345,9.03247,2549.4,2549.3,0.78451]
[1751966822546,36.33007,2549.4,2549.3,0.78451]
[1751966822745,28.08207,2549.4,2549.3,0.78451]
[1751966822949,28.08207,2549.4,2549.3,1.48231]
[1751966823850,0.6786,2549.4,2549.3,1.48231]
[1751966824152,28.08007,2549.4,2549.3,1.48231]
[1751966824852,27.2956,2549.4,2549.3,1.48231]
[1751966825247,27.2956,2549.4,2549.3,3.64933608]
[1751966825854,26.617,2549.4,2549.3,4.69663608]
[1751966826049,27.2956,2549.4,2549.3,4.69663608]
[1751966826249,27.2956,2549.4,2549.3,3.64933608]
[1751966826651,27.2956,2549.4,2549.3,4.69663608]
[1751966827052,64.4348,2549.6,2549.5,2.95146608]
[1751966827253,91.0498,2549.6,2549.5,3.64926608]
[1751966828256,3.2078,2549.6,2549.5,2.52954]
[1751966828458,4.67081,2549.6,2549.5,1.48224]
[1751966828656,3.8864,2549.6,2549.5,1.48224]
[1751966829054,4.67081,2549.6,2549.5,1.48224]
[1751966829556,3.8864,2549.6,2549.5,1.48224]
[1751966830655,4.9322,2549.6,2549.2,0.6705]
[1751966830960,0.78457,2549.2,2549.1,0.78454]
[1751966831257,29.12297,2549.2,2549.1,0.78454]
[1751966832156,29.12297,2549.2,2549.1,1.48234]
[1751966832357,30.46927,2549.2,2549.1,0.78454]
[1751966832556,29.6847,2549.2,2549.1,0.78454]
[1751966832757,29.6847,2549.2,2549.1,1.48234]
[1751966834360,30.46924,2549.2,2549.1,1.48234]
[1751966836466,0.78466,2548.9,2548.8,0.78464]
[1751966836765,29.12106,2548.9,2548.8,0.78464]
[1751966839262,0.78466,2548.8,2548.7,0.78467]
[1751966839460,3.86838,2548.8,2548.7,0.78469]
[1751966839763,5.58466852,2548.8,2548.7,0.78469]
[1751966840154,3.86838,2548.8,2548.7,0.78469]
[1751966840362,5.58472115,2548.8,2548.7,0.78469]
[1751966842964,5.58292115,2548.8,2548.7,0.78469]
[1751966844164,0.78471,2548.7,2548.6,0.78469]
[1751966844366,30.42955115,2548.7,2548.6,0.78469]
[1751966844565,0.78475,2548.6,2548.5,0.78472]
[1751966844961,2.09825,2548.6,2548.5,0.78472]
[1751966845763,1.3135,2548.6,2548.5,0.78472]
[1751966846865,2.09822,2548.6,2548.5,1.47842]
[1751966847264,1.3135,2548.6,2548.5,1.47842]
[1751966847662,1.3135,2548.6,2548.5,3.64544608]
[1751966847965,1.3135,2548.6,2548.5,2.95174608]
[1751966848165,3.0361,2548.6,2548.5,3.64544608]
[1751966848364,3.0361,2548.6,2548.5,2.95174608]
[1751966848561,3.82082,2548.6,2548.5,3.64544608]
[1751966849667,3.0361,2548.6,2548.5,3.64544608]
[1751966850264,3.82082,2548.6,2548.5,3.64544608]
[1751966851065,3.0361,2548.6,2548.5,3.64544608]
[1751966851265,0.6954,2548.6,2548.5,3.64544608]
[1751966851565,10.73706,2548.9,2548.8,0.78466]
[1751966851761,39.76795026,2548.9,2548.8,0.78466]
[1751966852466,4.22575026,2548.9,2548.8,1.47836]
[1751966852666,30.84375026,2548.9,2548.8,1.47836]
[1751966854464,32.14045026,2548.9,2548.8,1.47836]
[1751966860178,32.14045026,2548.9,2548.6,4.79401608]
[1751966860179,0.78468,2548.7,2548.6,0.6652]
[1751966860371,0.78474,2548.5,2548.4,3.99255]
[1751966860674,29.12434,2548.5,2548.4,3.99255]
[1751966860869,29.12434,2548.5,2548.4,4.68625]
[1751966861065,29.12434,2548.5,2548.4,3.99255]
[1751966861276,30.83274907,2548.5,2548.4,4.68625]
[1751966861471,29.80554907,2548.5,2548.4,4.68625]
[1751966861672,29.80554907,2548.5,2548.4,6.85327608]
[1751966862175,29.80554907,2548.5,2548.4,3.64547608]
[1751966864983,29.11014907,2548.5,2548.4,3.64547608]
[1751966865281,29.02080907,2548.5,2548.4,3.64547608]
[1751966865476,2.40380907,2548.5,2548.4,3.64547608]
[1751966865680,2.34960818,2549.1,2548.4,6.6542]
[1751966865880,0.78459,2549.1,2549.0,0.78459]
[1751966866181,28.32971375,2549.1,2549.0,2.43879]
[1751966866778,28.32971375,2549.1,2549.0,3.78869]
[1751966867885,29.11427375,2549.1,2549.0,3.78869]
[1751966868484,29.80967375,2549.1,2549.0,3.78869]
[1751966868678,29.11427375,2549.1,2549.0,3.78869]
[1751966868982,29.80967375,2549.1,2549.0,3.78869]
[1751966869186,29.80967375,2549.1,2549.0,1.47829]
[1751966869384,32.15928193,2549.1,2549.0,3.64531608]
[1751966870184,32.15528193,2549.1,2549.0,3.64531608]
[1751966871587,31.36922193,2549.1,2549.0,2.43879]
[1751966871787,29.01961375,2549.1,2549.0,2.43879]
[1751966871992,2.40361375,2549.1,2549.0,2.43879]
[1751966872186,29.01861375,2549.1,2549.0,3.81039]
[1751966872387,28.32471375,2549.1,2549.0,3.89999]
[1751966872590,29.01861375,2549.1,2549.0,3.89999]
[1751966872888,28.32471375,2549.1,2549.0,3.89999]
[1751966873084,29.80317375,2549.1,2549.0,3.89999]
[1751966873288,29.80317375,2549.1,2549.0,2.52839]
[1751966873985,29.80317375,2549.1,2549.0,4.69541608]
[1751966875590,2.40361375,2549.1,2549.0,4.69541608]
[1751966875791,0.6939,2549.1,2549.0,3.81929]
[1751966876085,26.615,2549.3,2549.1,0.78456]
[1751966876290,26.615,2549.3,2549.1,2.07546]
[1751966876588,0.78446,2549.5,2549.4,0.78447]
[1751966876781,29.7962871,2549.5,2549.4,0.78447]
[1751966877390,29.7962871,2549.5,2549.4,2.95149608]
[1751966877586,29.7962871,2549.5,2549.4,3.63869608]
[1751966878181,29.7962871,2549.5,2549.4,2.95149608]
[1751966878381,30.7824871,2549.5,2549.4,3.63869608]
[1751966879194,29.7962871,2549.5,2549.4,3.63869608]
[1751966880990,30.7824871,2549.5,2549.4,0.6872]
[1751966881194,30.7824871,2549.5,2549.4,1.47167]
[1751966883095,29.0118271,2549.5,2549.4,1.47167]
[1751966883293,29.0118271,2549.5,2549.4,3.63869608]
[1751966884091,2.3958271,2549.5,2549.4,3.63869608]
[1751966884299,29.0078271,2549.5,2549.4,2.52827]
[1751966884492,28.3139271,2549.5,2549.4,2.52827]
[1751966885597,28.09034,2549.5,2549.4,2.52827]
[1751966886000,0.6939,2549.5,2549.4,2.52827]
[1751966886299,27.3059,2549.5,2549.4,2.52827]
[1751966888598,28.09034,2549.5,2549.4,2.52827]
[1751966889795,0.7845,2549.3,2549.2,1.46652]
[1751966890000,0.6939,2549.3,2549.2,2.15373]
[1751966899308,2.39108452,2549.3,2549.2,2.15373]
[1751966902413,2.38308452,2549.3,2549.2,2.15373]
[1751966903009,1.69718452,2549.3,2549.2,2.15373]
[1751966903205,1.69718452,2549.3,2549.2,3.19003]
[1751966903615,2.38308452,2549.3,2549.2,3.19003]
[1751966905513,1.69718452,2549.3,2549.2,3.19003]
[1751966907712,1.69718452,2549.3,2549.2,4.46933]
[1751966908914,26.609,2549.5,2549.4,0.78447]
[1751966909111,28.99556659,2549.5,2549.4,1.47917]
[1751966909911,29.78000659,2549.5,2549.4,1.47917]
[1751966910107,1.70066659,2549.5,2549.4,2.51547]
[1751966910310,2.38656659,2549.5,2549.4,1.47917]
[1751966910511,3.17100659,2549.5,2549.4,0.78447]
[1751966910809,3.17100659,2549.5,2549.4,1.47917]
[1751966912113,2.38656659,2549.5,2549.4,1.47917]
[1751966912716,1.70066659,2549.5,2549.4,1.47917]
[1751966912915,1.70066659,2549.5,2549.4,2.51547]
[1751966913718,1.70066659,2549.5,2549.4,5.72327]
[1751966914111,2.35230094,2550.0,2549.7,1.9609]
[1751966914315,2.35230094,2550.0,2549.8,1.82064]
[1751966914316,1.69989465,2549.9,2549.8,1.82064]
[1751966914516,1.69989465,2549.9,2549.8,2.48804]
[1751966914716,2.38579465,2549.9,2549.8,3.18274]
[1751966914916,2.38579465,2549.9,2549.8,2.14644]
[1751966915515,2.38579465,2549.9,2549.8,3.18274]
[1751966915716,1.69989465,2549.9,2549.8,3.18274]
[1751966916213,34.853,2550.1,2550.0,0.78428]
[1751966916409,37.22336314,2550.1,2550.0,0.78428]
[1751966916618,37.22336314,2550.1,2550.0,1.47898]
[1751966917216,29.94986314,2550.1,2550.0,1.47898]
[1751966917918,29.94986314,2550.1,2550.0,3.64600608]
[1751966919722,28.97936314,2550.1,2550.0,3.64600608]
[1751966919921,29.94986314,2550.1,2550.0,3.64600608]
[1751966922717,30.73411314,2550.1,2550.0,3.64600608]
[1751966922921,32.07051314,2550.1,2550.0,0.78428]
[1751966923418,32.0671925,2550.1,2550.0,2.95130608]
[1751966924629,32.0671925,2550.1,2550.0,3.64600608]
[1751966930027,32.0671925,2550.1,2550.0,1.47898]
[1751966930234,32.0671925,2550.1,2550.0,0.78428]
[1751966932837,32.0671925,2550.1,2550.0,2.95130608]
[1751966933035,32.0671925,2550.1,2550.0,3.65950608]
[1751966933231,32.0671925,2550.1,2550.0,2.95130608]
[1751966933437,32.0671925,2550.1,2550.0,3.65950608]
[1751966936442,30.38605,2550.1,2550.0,3.65950608]
[1751966936738,32.06657177,2550.1,2550.0,3.65950608]
[1751966942144,30.73017177,2550.1,2550.0,3.65950608]
[1751966942543,29.75967177,2550.1,2550.0,3.65950608]
[1751966942940,28.96742177,2550.1,2550.0,3.65950608]
[1751966943339,29.71797177,2550.1,2550.0,2.53278]
[1751966943540,28.93372177,2550.1,2550.0,2.53278]
[1751966943738,29.71797177,2550.1,2550.0,1.49248]
[1751966943944,28.93372177,2550.1,2550.0,1.49248]
[1751966944339,29.71797177,2550.1,2550.0,1.49248]
[1751966946741,3.11697177,2550.1,2550.0,1.49248]
[1751966946947,2.33272177,2550.1,2550.0,1.49248]
[1751966947148,2.33272177,2550.1,2550.0,2.53278]
[1751966948747,3.11697177,2550.1,2550.0,1.49248]
[1751966949548,2.33272177,2550.1,2550.0,1.49248]
[1751966949843,3.11697177,2550.1,2550.0,1.49248]
[1751966950042,4.08067177,2550.1,2550.0,1.49248]
[1751966950446,2.33272177,2550.1,2550.0,1.49248]
[1751966950849,3.11697177,2550.1,2550.0,1.49248]
[1751966951247,2.33272177,2550.1,2550.0,1.49248]
[1751966952147,3.11697177,2550.1,2550.0,1.49248]
[1751966952450,3.29642177,2550.1,2550.0,1.49248]
[1751966952750,4.08067177,2550.1,2550.0,1.49248]
[1751966952945,2.33272177,2550.1,2550.0,1.49248]
[1751966954954,3.11697177,2550.1,2550.0,1.49248]
[1751966955257,4.08067177,2550.1,2550.0,1.49248]
[1751966955447,4.08067177,2550.1,2550.0,3.65950608]
[1751966958949,4.08067177,2550.1,2550.0,0.7082]
[1751966959147,4.08067177,2550.1,2550.0,0.78428]
[1751966959353,5.40727177,2550.1,2550.0,0.78428]
[1751966960548,5.40727177,2550.1,2550.0,1.47188]
[1751966960750,5.40727177,2550.1,2550.0,0.78428]
[1751966961048,5.40727177,2550.1,2550.0,1.47188]
[1751966964458,3.11697177,2550.1,2550.0,1.47188]
[1751966974963,2.33272177,2550.1,2550.0,1.47188]
[1751966975561,3.11697177,2550.1,2550.0,1.47188]
[1751966976869,2.33272177,2550.1,2550.0,1.47188]
[1751966977264,2.33272177,2550.1,2550.0,2.51028]
[1751966977768,2.35230094,2550.3,2550.2,0.78422]
[1751966977964,0.78411,2550.6,2550.3,1.96048]
[1751966978168,0.7841,2550.7,2550.6,0.78407]
[1751966978472,28.0953,2550.7,2550.6,0.78407]
[1751966980273,0.6632,2550.7,2550.6,0.78407]
[1751966980472,26.647,2550.7,2550.6,0.78407]
[1751966980972,27.3102,2550.7,2550.6,0.78407]
[1751966981172,3.32900094,2550.9,2550.8,0.78404]
[1751966981372,27.3072,2550.9,2550.8,1.47164]
[1751966981976,27.3042,2550.9,2550.8,1.47164]
[1751966982474,28.08821,2550.9,2550.8,1.47164]
[1751966982974,27.3042,2550.9,2550.8,1.47164]
[1751966983370,0.6632,2550.9,2550.8,2.51004]
[1751966983876,0.6632,2550.9,2550.8,0.78404]
[1751966984071,0.6632,2550.9,2550.8,1.47164]
[1751966984667,1.44721,2550.9,2550.8,1.47164]
[1751966985174,0.6632,2550.9,2550.8,1.47164]
[1751966987575,1.44721,2550.9,2550.8,1.47164]
[1751966987775,0.6632,2550.9,2550.8,1.47164]
[1751966988175,1.44721,2550.9,2550.8,1.47164]
[1751966988378,0.6632,2550.9,2550.8,1.47164]
[1751966989076,1.44721,2550.9,2550.8,1.47164]
[1751966989279,0.6632,2550.9,2550.8,1.47164]
[1751966989780,1.44721,2550.9,2550.8,1.47164]
[1751966990781,1.44721,2550.9,2550.8,1.44704]
[1751966990973,1.44721,2550.9,2550.8,0.78404]
[1751966991172,1.44721,2550.9,2550.8,1.44704]
[1751966991375,1.44721,2550.9,2550.8,0.78404]
[1751966991676,1.44721,2550.9,2550.8,1.44704]
[1751966994979,2.43651,2550.9,2550.8,1.44704]
[1751966996176,1.44721,2550.9,2550.8,1.44704]
[1751967000385,2.43651,2550.9,2550.8,1.44704]
[1751967000682,1.44721,2550.9,2550.8,1.44704]
[1751967003278,2.43651,2550.9,2550.8,1.44704]
[1751967003882,3.75001,2550.9,2550.8,1.44704]
[1751967004482,5.3962003,2550.9,2550.8,1.44704]
[1751967006593,4.4069003,2550.9,2550.8,1.44704]
[1751967008785,5.3962003,2550.9,2550.8,1.44704]
[1751967012189,0.78404,2550.8,2550.7,0.6917]
[1751967012395,3.2802903,2550.8,2550.7,1.47577]
[1751967012592,1.6461903,2550.8,2550.7,1.47577]
[1751967012789,2.35230094,2551.0,2550.9,0.78401]
[1751967012993,33.01984396,2551.0,2550.8,0.78403]
[1751967013192,31.74369094,2551.0,2550.9,0.78401]
[1751967013392,33.39510902,2551.0,2550.9,0.78401]
[1751967013999,34.38440902,2551.0,2550.9,0.78401]
[1751967014296,32.03210808,2551.0,2550.9,0.78401]
[1751967014999,32.03210808,2551.0,2550.9,1.44701]
[1751967015495,32.03210808,2551.0,2550.9,0.78401]
[1751967015997,32.03210808,2551.0,2550.9,1.44701]
[1751967016799,31.24811808,2551.0,2550.9,1.44701]
[1751967018600,32.03208808,2551.0,2550.9,1.44701]
[1751967019702,31.24811808,2551.0,2550.9,1.44701]
[1751967021904,32.03208808,2551.0,2550.9,1.44701]
[1751967023698,28.89421808,2551.0,2550.9,1.44701]
[1751967024400,2.29621808,2551.0,2550.9,1.44701]
[1751967024598,1.65141808,2551.0,2550.9,2.43301]
[1751967028503,26.59,2551.2,2551.1,0.78394]
[1751967028703,28.91692193,2551.2,2551.1,4.63234]
[1751967029304,28.22742193,2551.2,2551.1,5.61834]
[1751967029611,28.91692193,2551.2,2551.1,5.61834]
[1751967029809,28.91692193,2551.2,2551.1,4.63234]
[1751967032204,28.91692193,2551.2,2551.1,2.94750865]
[1751967032205,30.74773193,2551.2,2551.1,2.94750865]
[1751967032400,29.96382193,2551.2,2551.1,2.94750865]
[1751967032600,29.96382193,2551.2,2551.1,3.58810865]
[1751967032800,30.74773193,2551.2,2551.1,3.58810865]
[1751967034911,29.96382193,2551.2,2551.1,3.58810865]
[1751967035112,29.96382193,2551.2,2551.1,1.42454]
[1751967036415,28.91692193,2551.2,2551.1,1.42454]
[1751967037514,30.74773193,2551.2,2551.1,1.42454]
[1751967037716,29.96382193,2551.2,2551.1,1.42454]
[1751967037914,30.74773193,2551.2,2551.1,1.42454]
[1751967038213,29.70083193,2551.2,2551.1,1.42454]
[1751967038415,2.32692193,2551.2,2551.1,1.42454]
[1751967038614,28.91492193,2551.2,2551.1,1.42454]
[1751967040320,30.74573193,2551.2,2551.1,0.78394]
[1751967042217,0.78401,2551.0,2550.9,0.78395]
[1751967042416,28.06151,2551.0,2550.9,0.78395]
[1751967042617,30.74583193,2551.0,2550.9,0.78395]
[1751967043223,30.74579193,2551.0,2550.9,0.78395]
[1751967043921,29.96182193,2551.0,2550.9,1.42455]
[1751967044726,30.74579193,2551.0,2550.9,1.42455]
[1751967045026,29.96182193,2551.0,2550.9,1.42455]
[1751967045524,30.74579193,2551.0,2550.9,1.42455]
[1751967046823,3.37382193,2551.0,2550.9,1.42455]
[1751967047019,26.588,2551.0,2550.9,2.41055]
[1751967047426,27.2775,2551.0,2550.9,2.41055]
[1751967047622,26.588,2551.0,2550.9,2.41055]
[1751967047826,27.2775,2551.0,2550.9,2.41055]
[1751967048126,26.588,2551.0,2550.9,2.41055]
[1751967048826,27.2775,2551.0,2550.9,1.42455]
[1751967049232,28.90987397,2551.0,2550.9,1.42455]
[1751967050427,28.90987397,2551.0,2550.9,2.41055]
[1751967052627,28.22037397,2551.0,2550.9,2.41055]
[1751967052827,5.23456094,2551.4,2550.9,2.41055]
[1751967052828,26.588,2551.2,2551.1,0.78394]
[1751967053027,28.87733337,2551.2,2551.1,0.78394]
[1751967053229,28.87733337,2551.2,2551.1,1.46874]
[1751967056832,28.87733337,2551.2,2551.1,2.16754]
[1751967057429,1.63293337,2551.2,2551.1,2.16754]
[1751967057634,28.21993337,2551.2,2551.1,2.16754]
[1751967057835,28.87633337,2551.2,2551.1,2.16754]
[1751967058035,28.21993337,2551.2,2551.1,2.16754]
[1751967058229,28.87633337,2551.2,2551.1,2.16754]
[1751967061134,28.87633337,2551.2,2551.1,3.20234]
[1751967061334,28.96131115,2551.2,2551.1,3.20234]
[1751967062034,2.37431115,2551.2,2551.1,3.20234]
[1751967062637,1.71791115,2551.2,2551.1,3.20234]
[1751967063037,1.71791115,2551.2,2551.1,4.50164]
[1751967063336,8.238,2551.6,2551.2,1.95975]
[1751967063537,0.6564,2551.6,2551.5,1.46862]
[1751967063931,0.6564,2551.6,2551.5,2.13802]
[1751967065736,3.13602094,2551.9,2551.8,2.94729865]
[1751967065935,30.69142094,2551.9,2551.8,2.94729865]
[1751967066131,33.41782094,2551.9,2551.8,2.94729865]
[1751967066535,31.06552,2551.9,2551.8,2.94729865]
[1751967066740,33.41782094,2551.9,2551.8,2.94729865]
[1751967067341,31.06552,2551.9,2551.8,2.94729865]
[1751967067538,30.2818,2551.9,2551.8,2.94729865]
[1751967067740,30.2798,2551.9,2551.8,0.78373]
[1751967067942,31.0635,2551.9,2551.8,0.78373]
[1751967068243,4.4795,2551.9,2551.8,0.78373]
[1751967068443,31.0635,2551.9,2551.8,0.78373]
[1751967068643,30.2798,2551.9,2551.8,0.78373]
[1751967069946,31.0635,2551.9,2551.8,0.78373]
[1751967070145,30.2798,2551.9,2551.8,0.78373]
[1751967070346,30.2798,2551.9,2551.8,2.94729865]
[1751967070946,31.0635,2551.9,2551.8,2.94729865]
[1751967071647,31.0635,2551.9,2551.8,0.78373]
[1751967071848,31.0635,2551.9,2551.8,2.94729865]
[1751967075350,32.76280573,2551.9,2551.8,2.94729865]
[1751967080549,6.17880573,2551.9,2551.8,3.63969865]
[1751967080755,28.93570573,2551.9,2551.8,1.47613]
[1751967081054,30.68880573,2551.9,2551.8,1.47613]
[1751967082048,30.68880573,2551.9,2551.8,2.16356865]
[1751967082358,31.97750573,2551.9,2551.8,2.16356865]
[1751967083357,31.97750573,2551.9,2551.8,2.94729865]
[1751967083754,31.97750573,2551.9,2551.8,3.63969865]
[1751967083958,31.97750573,2551.9,2551.8,2.94729865]
[1751967085356,31.97750573,2551.9,2551.8,3.63969865]
[1751967085860,31.19380573,2551.9,2551.8,3.63969865]
[1751967086062,28.93570573,2551.9,2551.8,1.47613]
[1751967086360,1.69930573,2551.9,2551.8,2.53193]
[1751967086954,28.27730573,2551.9,2551.8,2.53193]
[1751967087155,28.27730573,2551.9,2551.8,3.19653]
[1751967088359,1.69930573,2551.9,2551.8,3.19653]
[1751967088566,3.31150094,2552.5,2552.4,0.78355]
[1751967088767,28.91529159,2552.5,2552.4,1.47595]
[1751967089064,31.26759253,2552.5,2552.4,1.47595]